bitfinex/quotes_SOLUSD_20251025
["timestamp","ask_amount","ask_price","bid_price","bid_amount"]
[1761405863881,3.48629213,192.15,192.13,0.7]
[1761405865705,3.48629213,192.15,192.12,5.90508015]
[1761405866909,3.48629213,192.15,192.13,0.7]
[1761405867100,4.20629213,192.16,192.13,0.7]
[1761405867307,3.48629213,192.15,192.13,5.90477821]
[1761405867796,3.48629213,192.16,192.14,36.7]
[1761405867998,3.48629213,192.15,192.14,36.7]
[1761405868185,3.48629213,192.16,192.15,0.7]
[1761405869016,0.79,192.17,192.14,36.0]
[1761405869514,0.79,192.17,192.14,36.7]
[1761405869692,0.07,192.17,192.14,36.7]
[1761405870015,0.07,192.17,192.15,0.7]
[1761405872216,0.79,192.17,192.14,36.7]
[1761405874521,0.07,192.17,192.14,36.0]
[1761405874893,0.79,192.17,192.14,36.7]
[1761405875500,0.07,192.17,192.14,41.20447412]
[1761405875818,0.07,192.17,192.15,0.7]
[1761405876000,0.07,192.17,192.14,41.20447412]
[1761405876001,0.07,192.17,192.14,41.90447412]
[1761405876192,0.79,192.17,192.14,41.90447412]
[1761405879615,0.79,192.17,192.14,36.7]
[1761405882923,0.79,192.17,192.15,5.40339963]
[1761405883821,0.07,192.17,192.15,5.40339963]
[1761405884203,0.79,192.17,192.15,5.40339963]
[1761405886614,5.99377264,192.17,192.15,5.40339963]
[1761405890935,0.79,192.17,192.15,5.40339963]
[1761405893424,5.99384668,192.17,192.15,5.40339963]
[1761405893931,0.7,192.16,192.15,5.40339963]
[1761405894337,5.90399666,192.16,192.15,5.40339963]
[1761405895515,5.90399666,192.16,192.1,34.64]
[1761405895716,0.7,192.15,192.11,13.20866481]
[1761405896330,5.90439061,192.15,192.11,13.20866481]
[1761405896832,0.7,192.14,192.11,13.92866481]
[1761405897340,0.7,192.14,192.11,0.72]
[1761405897529,0.7,192.14,192.12,5.20439061]
[1761405899025,5.90459298,192.14,192.12,5.20439061]
[1761405899434,0.7,192.13,192.12,5.20439061]
[1761405900543,5.90480924,192.13,192.1,34.64]
[1761405900728,5.90480924,192.13,192.1,47.6500231]
[1761405900930,0.68,192.12,192.1,47.6500231]
[1761405901319,5.88480924,192.13,192.1,35.31]
[1761405901720,5.88480924,192.13,192.11,13.0100231]
[1761405902044,23.56,192.16,192.11,13.6800231]
[1761405902232,23.56,192.16,192.12,0.67]
[1761405902430,22.88,192.16,192.12,0.67]
[1761405902631,0.68,192.15,192.12,0.67]
[1761405902933,0.68,192.15,192.12,16.29215221]
[1761405903131,5.88432973,192.15,192.12,16.29215221]
[1761405904048,5.20432973,192.15,192.12,15.62215221]
[1761405904228,0.68,192.14,192.12,15.62215221]
[1761405906243,5.88459271,192.14,192.12,15.62215221]
[1761405906434,5.88459271,192.14,192.1,34.64]
[1761405906745,5.88459271,192.14,192.1,50.93215221]
[1761405907126,5.88459271,192.14,192.11,0.67]
[1761405908720,0.68,192.16,192.11,0.67]
[1761405909141,0.07,192.17,192.12,26.49537407]
[1761405909462,0.07,192.17,192.13,36.0]
[1761405909648,0.07,192.17,192.13,36.67]
[1761405909949,0.07,192.17,192.14,0.67]
[1761405910428,0.07,192.17,192.15,2.08241143]
[1761405910629,0.07,192.17,192.16,35.98]
[1761405911426,0.07,192.17,192.16,41.3832392]
[1761405918954,0.75,192.17,192.16,5.4032392]
[1761405919161,0.75,192.17,192.14,35.98]
[1761405919469,0.75,192.17,192.14,41.3832392]
[1761405920463,0.07,192.17,192.15,0.68]
[1761405920964,0.07,192.17,192.14,41.3832392]
[1761405921140,0.77,192.17,192.14,42.0632392]
[1761405924954,0.07,192.17,192.15,0.68]
[1761405925352,0.07,192.17,192.15,6.08323385]
[1761405928775,0.07,192.17,192.15,0.68]
[1761405929654,0.07,192.17,192.15,6.08323385]
[1761405931251,0.07,192.17,192.15,0.68]
[1761405931878,22.88,192.15,192.04,5.20704046]
[1761405932067,11.57647521,192.14,192.05,0.68]
[1761405932374,22.88,192.13,192.05,19.04]
[1761405932678,39.2045931,192.13,192.06,0.68]
[1761405932851,0.7,192.12,192.06,16.3045931]
[1761405933255,0.7,192.12,192.07,0.68]
[1761405933973,5.90522696,192.12,192.07,0.68]
[1761405934548,0.7,192.11,192.07,0.68]
[1761405937260,28.08428287,192.15,192.07,5.88638042]
[1761405937463,28.78428287,192.15,192.08,36.02]
[1761405937769,0.7,192.14,192.08,52.32296575]
[1761405937969,0.7,192.14,192.09,0.68]
[1761405938375,5.90460319,192.14,192.09,0.68]
[1761405938767,0.7,192.13,192.09,16.30296575]
[1761405939573,0.7,192.13,192.09,15.62296575]
[1761405939870,0.7,192.13,192.1,0.68]
[1761405940863,5.90480932,192.13,192.09,15.62296575]
[1761405941167,5.90480932,192.13,192.08,41.90614577]
[1761405941468,0.7,192.12,192.08,57.52992516]
[1761405941669,0.7,192.12,192.08,56.84992516]
[1761405941984,0.7,192.12,192.09,0.68]
[1761405946384,5.90453835,192.14,192.09,0.68]
[1761405946875,0.7,192.13,192.09,0.68]
[1761405952072,0.7,192.13,192.09,5.88581501]
[1761405953469,0.7,192.13,192.09,5.20581501]
[1761405953673,0.7,192.13,192.09,5.92581501]
[1761405954077,0.7,192.13,192.1,0.72]
[1761405956282,0.7,192.13,192.09,5.20581501]
[1761405956485,0.7,192.13,192.09,5.92581501]
[1761405957787,0.7,192.13,192.1,0.72]
[1761405958281,0.7,192.13,192.09,5.92581501]
[1761405958685,0.7,192.13,192.09,5.20581501]
[1761405958893,0.7,192.13,192.1,0.72]
[1761405959781,0.7,192.13,192.09,5.86581501]
[1761405960181,0.7,192.13,192.09,5.20581501]
[1761405960484,0.7,192.13,192.1,0.66]
[1761405963176,5.20479286,192.14,192.1,0.66]
[1761405963379,5.85412787,192.16,192.1,5.86551538]
[1761405963793,5.85412787,192.16,192.11,0.66]
[1761405964201,0.65,192.15,192.11,0.66]
[1761405965099,5.85440278,192.15,192.11,0.66]
[1761405965596,5.20440278,192.15,192.11,0.66]
[1761405967685,5.20399666,192.16,192.11,0.66]
[1761405968007,0.65,192.15,192.11,0.66]
[1761405972907,5.85451755,192.15,192.11,0.66]
[1761405973692,5.20451755,192.15,192.11,0.66]
[1761405974392,0.65,192.15,192.11,0.66]
[1761405976006,0.07,192.17,192.11,18.87868468]
[1761405976202,0.07,192.17,192.12,34.41647521]
[1761405976506,0.07,192.17,192.14,29.09235945]
[1761405976718,0.07,192.17,192.15,0.66]
[1761405978411,0.07,192.17,192.16,5.20399666]
[1761405979176,0.07,192.17,192.16,5.86399666]
[1761405988220,0.07,192.17,192.16,41.84399666]
[1761405991391,0.07,192.17,192.16,52.72047187]
[1761406001926,0.07,192.17,192.16,75.60047187]
[1761406003726,0.07,192.17,192.16,77.68244974]
[1761406023742,0.2,192.18,192.17,10.87647521]
[1761406024041,0.2,192.18,192.17,18.06672341]
[1761406024443,0.2,192.18,192.17,20.14826791]
[1761406025038,0.2,192.18,192.17,26.1276599]
[1761406025256,0.2,192.19,192.17,26.1276599]
[1761406025548,1e-08,192.19,192.18,52.7399303]
[1761406025748,1e-08,192.19,192.18,102.7399303]
[1761406025934,1e-08,192.19,192.18,104.82136649]
[1761406028651,1e-08,192.19,192.18,52.7399303]
[1761406040464,1e-08,192.19,192.18,53.2602758]
[1761406045070,1e-08,192.21,192.2,10.87647521]
[1761406045275,1e-08,192.21,192.2,70.21676657]
[1761406045477,1e-08,192.21,192.2,70.90676657]
[1761406046667,0.2,192.23,192.21,11.56647521]
[1761406046875,0.2,192.23,192.22,59.34023722]
[1761406047169,0.2,192.23,192.22,60.03023722]
[1761406048471,0.2,192.23,192.22,65.2326095]
[1761406051873,0.2,192.23,192.22,76.10908471]
[1761406052051,1e-08,192.24,192.23,10.87647521]
[1761406052256,1e-08,192.24,192.23,61.56647521]
[1761406052672,1e-08,192.24,192.23,67.51635083]
[1761406053474,1e-08,192.24,192.23,68.03656099]
[1761406054073,1e-08,192.24,192.23,73.23866263]
[1761406057075,1e-08,192.24,192.23,135.23866263]
[1761406057255,1e-08,192.24,192.23,134.71845247]
[1761406062890,1e-08,192.24,192.23,72.71845247]
[1761406063194,1e-08,192.24,192.23,73.23866263]
[1761406063682,1e-08,192.24,192.23,75.31955741]
[1761406066791,0.2,192.26,192.25,83.75647521]
[1761406067094,0.2,192.26,192.25,120.19663125]
[1761406067271,0.2,192.26,192.25,119.67647521]
[1761406067471,0.2,192.26,192.25,125.56803567]
[1761406068066,0.2,192.27,192.26,10.87647521]
[1761406068262,0.2,192.27,192.26,11.56647521]
[1761406068467,0.2,192.27,192.26,12.0866042]
[1761406069369,0.2,192.27,192.26,14.16717427]
[1761406069570,0.2,192.27,192.26,18.67846418]
[1761406069788,0.91,192.27,192.26,18.67846418]
[1761406070384,0.2,192.27,192.26,18.67846418]
[1761406070785,0.2,192.27,192.26,19.33846418]
[1761406072006,0.2,192.28,192.27,60.87647521]
[1761406072205,0.2,192.28,192.27,97.45647521]
[1761406072508,0.2,192.28,192.27,46.79647521]
[1761406072705,0.2,192.28,192.27,48.87704528]
[1761406073293,0.2,192.28,192.27,49.39714721]
[1761406074212,0.2,192.28,192.27,54.5981666]
[1761406075605,0.9,192.28,192.27,18.15806467]
[1761406075785,0.9,192.28,192.27,74.8774946]
[1761406075988,0.9,192.28,192.27,76.95806467]
[1761406077142,0.2,192.28,192.27,77.61806467]
[1761406077295,0.2,192.28,192.27,76.95806467]
[1761406077495,0.9,192.28,192.27,76.95806467]
[1761406077700,0.2,192.28,192.27,76.95806467]
[1761406080107,0.2,192.28,192.27,77.65806467]
[1761406080417,0.2,192.28,192.27,76.95806467]
[1761406084539,0.2,192.28,192.27,74.8774946]
[1761406084540,0.92,192.28,192.27,74.8774946]
[1761406084822,0.2,192.28,192.27,74.8774946]
[1761406085014,0.92,192.28,192.27,74.8774946]
[1761406085999,0.2,192.28,192.27,74.8774946]
[1761406089227,0.92,192.28,192.27,74.8774946]
[1761406092202,0.2,192.28,192.27,74.8774946]
[1761406096330,0.2,192.28,192.27,75.5774946]
[1761406097906,0.2,192.29,192.27,75.5774946]
[1761406097907,0.2,192.29,192.28,10.87647521]
[1761406098218,0.2,192.29,192.28,17.73855637]
[1761406099043,0.2,192.29,192.28,19.81891003]
[1761406099415,0.2,192.29,192.28,20.33898492]
[1761406099724,0.2,192.29,192.28,25.01965893]
[1761406099912,0.2,192.29,192.28,22.23930527]
[1761406100526,0.2,192.29,192.28,22.95930527]
[1761406104918,0.2,192.29,192.28,23.47938016]
[1761406105116,0.2,192.29,192.28,25.55973382]
[1761406105717,0.2,192.29,192.28,23.47938016]
[1761406106241,0.2,192.29,192.28,22.23930527]
[1761406106645,0.2,192.29,192.28,22.95930527]
[1761406107721,0.2,192.29,192.28,23.47938016]
[1761406110651,0.2,192.29,192.28,22.95930527]
[1761406115468,0.2,192.29,192.28,23.47938016]
[1761406123866,0.2,192.29,192.28,25.55973382]
[1761406129266,0.2,192.29,192.28,25.03965893]
[1761406134274,0.2,192.29,192.28,24.31965893]
[1761406134866,0.92,192.29,192.28,22.23930527]
[1761406137486,0.92,192.29,192.28,11.36283006]
[1761406148585,0.2,192.29,192.28,22.23930527]
[1761406148886,0.2,192.29,192.28,25.02998357]
[1761406157972,0.2,192.29,192.28,24.31998357]
[1761406161394,0.87,192.29,192.28,24.31998357]
[1761406164808,0.2,192.29,192.28,24.31998357]
[1761406166310,0.87,192.29,192.28,24.31998357]
[1761406168095,0.2,192.29,192.28,24.31998357]
[1761406168803,0.87,192.29,192.28,24.31998357]
[1761406170685,0.87,192.29,192.28,13.44350836]
[1761406170891,0.87,192.29,192.28,11.36283006]
[1761406176394,0.87,192.29,192.28,6.16208116]
[1761406202246,0.87,192.29,192.28,42.08208116]
[1761406208636,0.2,192.29,192.28,47.95283006]
[1761406209519,0.2,192.29,192.28,50.03372484]
[1761406209852,0.2,192.29,192.28,47.95283006]
[1761406210157,0.2,192.29,192.28,50.03372484]
[1761406210330,0.2,192.29,192.28,47.95283006]
[1761406211445,0.2,192.29,192.28,50.03372484]
[1761406212443,0.2,192.29,192.28,47.95283006]
[1761406215430,0.2,192.29,192.28,50.03372484]
[1761406215636,0.2,192.29,192.28,47.28283006]
[1761406216020,0.88,192.29,192.28,6.16208116]
[1761406216221,0.88,192.29,192.28,42.08208116]
[1761406218061,6.08047844,192.29,192.24,5.39997339]
[1761406218234,0.68,192.28,192.25,35.92]
[1761406222669,5.88077316,192.28,192.25,35.92]
[1761406223156,0.67,192.27,192.25,35.92]
[1761406225734,9.09134608,192.29,192.25,35.92]
[1761406225941,0.2,192.29,192.26,0.71]
[1761406226260,0.87,192.29,192.26,0.71]
[1761406226961,0.87,192.29,192.25,35.92]
[1761406227165,0.67,192.28,192.25,36.63]
[1761406227341,0.67,192.28,192.25,41.83154934]
[1761406229158,0.87,192.29,192.25,41.83154934]
[1761406230145,0.87,192.29,192.26,0.71]
[1761406230345,0.2,192.29,192.26,5.91123546]
[1761406230662,0.2,192.29,192.27,0.71]
[1761406230958,0.2,192.29,192.28,35.92]
[1761406236654,0.2,192.29,192.28,36.63]
[1761406250954,0.2,192.29,192.28,35.92]
[1761406252252,0.2,192.29,192.28,36.63]
[1761406252471,0.2,192.29,192.28,35.92]
[1761406254375,0.88,192.29,192.28,35.92]
[1761406255680,0.88,192.29,192.22,6.08076678]
[1761406255868,0.88,192.29,192.24,35.92]
[1761406255869,0.68,192.28,192.24,35.92]
[1761406256265,5.88079977,192.28,192.24,35.92]
[1761406256674,0.68,192.27,192.24,35.92]
[1761406264796,5.88104676,192.27,192.24,35.92]
[1761406265487,0.69,192.26,192.24,35.92]
[1761406265875,0.69,192.26,192.22,6.08076678]
[1761406266280,0.69,192.26,192.23,35.92]
[1761406266772,5.20156046,192.25,192.23,35.92]
[1761406267173,0.69,192.24,192.23,35.92]
[1761406268387,5.89183104,192.24,192.23,35.92]
[1761406269292,5.89183104,192.24,192.22,6.08076678]
[1761406269483,0.69,192.23,192.22,6.08076678]
[1761406272586,5.89210164,192.23,192.22,6.08076678]
[1761406284098,5.89128991,192.26,192.22,42.69076678]
[1761406284293,5.89128991,192.26,192.23,0.69]
[1761406286599,5.20128991,192.26,192.23,0.69]
[1761406287204,5.20101939,192.27,192.23,0.69]
[1761406287522,5.89101939,192.27,192.23,0.69]
[1761406290493,5.2007489,192.28,192.23,0.69]
[1761406290693,0.2,192.29,192.24,10.87647521]
[1761406290897,0.89,192.29,192.25,36.61]
[1761406291106,0.2,192.29,192.25,36.61]
[1761406291404,0.2,192.29,192.26,0.69]
[1761406294824,0.89,192.29,192.26,0.69]
[1761406295116,6.09050363,192.29,192.26,0.69]
[1761406299240,0.2,192.29,192.26,0.69]
[1761406301340,0.2,192.29,192.26,6.78028972]
[1761406301544,0.2,192.29,192.27,0.69]
[1761406301742,5.40048232,192.29,192.26,6.09028972]
[1761406301940,0.89,192.29,192.26,0.69]
[1761406302744,6.09047967,192.29,192.26,0.69]
[1761406308942,6.09047967,192.29,192.25,35.92]
[1761406309249,0.69,192.28,192.25,36.61]
[1761406309830,5.40047967,192.29,192.25,36.61]
[1761406310024,6.08047967,192.29,192.26,0.68]
[1761406315155,5.40047967,192.29,192.25,35.92]
[1761406315358,0.68,192.28,192.22,12.17124645]
[1761406315537,0.68,192.28,192.22,6.08076678]
[1761406315855,0.68,192.28,192.22,42.00076678]
[1761406317347,41.08356788,192.27,192.22,42.00076678]
[1761406317753,0.68,192.26,192.22,42.00076678]
[1761406319056,5.20156046,192.25,192.22,42.00076678]
[1761406319444,0.68,192.24,192.22,42.00076678]
[1761406320569,5.8819066,192.24,192.19,0.71]
[1761406320748,5.8819066,192.24,192.19,36.63]
[1761406321054,0.67,192.23,192.19,36.63]
[1761406321232,0.67,192.23,192.2,0.71]
[1761406322663,5.87214668,192.23,192.2,0.71]
[1761406323962,5.87214668,192.23,192.19,36.63]
[1761406324663,0.67,192.22,192.19,36.63]
[1761406328071,5.20264294,192.21,192.16,0.71]
[1761406328445,0.67,192.2,192.16,0.71]
[1761406328765,0.67,192.2,192.15,35.92]
[1761406329163,0.67,192.2,192.16,0.71]
[1761406329462,22.88,192.21,192.16,0.71]
[1761406329770,0.67,192.2,192.16,0.71]
[1761406330963,0.67,192.2,192.15,36.63]
[1761406331266,5.87295184,192.2,192.15,36.63]
[1761406331652,0.67,192.19,192.15,35.92]
[1761406332542,5.87323467,192.19,192.15,35.92]
[1761406333060,0.67,192.18,192.15,35.92]
[1761406341774,5.87351261,192.18,192.15,35.92]
[1761406342149,0.72,192.17,192.15,35.92]
[1761406343460,0.72,192.17,192.09,13.00680446]
[1761406343661,28.80373101,192.17,192.08,36.04]
[1761406343976,28.80373101,192.17,192.09,0.72]
[1761406344153,0.72,192.16,192.09,0.72]
[1761406346361,5.92419977,192.16,192.09,0.72]
[1761406346974,0.72,192.15,192.09,0.72]
[1761406347987,5.20419977,192.16,192.09,5.9258468]
[1761406348167,28.80373024,192.17,192.09,5.9258468]
[1761406348359,28.08373024,192.17,192.1,0.72]
[1761406348561,0.72,192.16,192.1,0.72]
[1761406349869,5.92410862,192.16,192.1,0.72]
[1761406350385,0.72,192.15,192.1,0.72]
[1761406352670,5.92439872,192.15,192.1,0.72]
[1761406353284,0.72,192.14,192.1,0.72]
[1761406353482,0.72,192.14,192.08,36.76]
[1761406353974,0.72,192.14,192.09,0.72]
[1761406354488,5.92468645,192.14,192.09,0.72]
[1761406355688,0.72,192.13,192.09,0.72]
[1761406357291,0.72,192.13,192.08,36.04]
[1761406357486,0.72,192.13,192.08,36.76]
[1761406357676,5.92489259,192.13,192.08,36.76]
[1761406358079,5.92489259,192.13,192.09,0.72]
[1761406358277,0.72,192.12,192.09,0.72]
[1761406359880,28.80515432,192.12,192.08,0.1]
[1761406360271,0.72,192.11,192.08,0.1]
[1761406361187,5.92559953,192.11,192.08,0.1]
[1761406361574,0.72,192.1,192.08,0.1]
[1761406361994,102.92,192.1,192.08,0.1]
[1761406362380,0.72,192.12,192.08,0.82]
[1761406362582,22.88,192.1,192.08,0.82]
[1761406363493,28.80538081,192.11,192.08,0.1]
[1761406363980,28.80538081,192.11,192.08,0.82]
[1761406368079,28.08538081,192.11,192.08,0.82]
[1761406368278,28.80538081,192.11,192.08,0.82]
[1761406368478,28.08538081,192.11,192.08,0.82]
[1761406369698,28.80538081,192.11,192.08,0.82]
[1761406370100,28.08538081,192.11,192.08,0.82]
[1761406371306,22.88,192.11,192.08,0.82]
[1761406372375,23.55,192.11,192.08,0.82]
[1761406372987,22.88,192.11,192.08,0.82]
[1761406375013,28.08539621,192.11,192.08,0.82]
[1761406378210,22.88,192.11,192.08,0.82]
[1761406378685,23.55,192.11,192.08,0.82]
[1761406380201,22.88,192.11,192.08,0.82]
[1761406380398,23.6,192.11,192.08,0.82]
[1761406381017,0.72,192.1,192.08,0.1]
[1761406381317,22.88,192.11,192.08,0.1]
[1761406381496,23.6,192.11,192.08,0.78]
[1761406382723,28.80554462,192.11,192.08,0.78]
[1761406384306,22.88,192.1,192.08,0.78]
[1761406391005,0.72,192.09,192.08,0.1]
[1761406391202,28.08566988,192.1,192.08,0.78]
[1761406391405,0.72,192.09,192.08,0.1]
[1761406392223,28.08566988,192.1,192.08,0.1]
[1761406392520,22.88,192.1,192.08,0.1]
[1761406394011,23.6,192.1,192.08,0.1]
[1761406394623,28.80562605,192.1,192.08,0.1]
[1761406394919,28.08562605,192.1,192.08,0.1]
[1761406396122,28.80562605,192.1,192.08,0.1]
[1761406396297,28.08562605,192.1,192.08,0.1]
[1761406398522,28.08562605,192.1,192.08,0.78]
[1761406400416,22.88,192.1,192.08,0.78]
[1761406402301,28.08535361,192.11,192.08,0.78]
[1761406404229,22.88,192.11,192.08,0.78]
[1761406406622,28.08535902,192.11,192.08,0.78]
[1761406409223,22.88,192.11,192.08,0.78]
[1761406412023,28.08539689,192.11,192.08,0.78]
[1761406417825,102.2,192.15,192.08,41.94597799]
[1761406418026,102.2,192.15,192.09,0.71]
[1761406418420,0.68,192.14,192.09,0.71]
[1761406418933,102.88,192.15,192.09,0.71]
[1761406419432,108.08427159,192.15,192.09,0.71]
[1761406420431,108.08427159,192.15,192.09,5.91576673]
[1761406420731,108.08427159,192.15,192.1,0.71]
[1761406421734,107.40427159,192.15,192.1,0.71]
[1761406422030,0.68,192.14,192.1,0.71]
[1761406422218,0.68,192.14,192.1,5.91559842]
[1761406422432,102.88,192.15,192.1,5.91559842]
[1761406422616,0.68,192.14,192.11,0.71]
[1761406423733,0.68,192.15,192.11,0.71]
[1761406425637,0.68,192.15,192.12,15.62296575]
[1761406426009,0.68,192.15,192.12,16.33296575]
[1761406426436,0.68,192.15,192.12,0.71]
[1761406426739,0.68,192.15,192.13,15.62296575]
[1761406441637,0.72,192.16,192.13,15.62296575]
[1761406441835,0.72,192.16,192.13,16.31296575]
[1761406442224,0.72,192.16,192.13,0.69]
[1761406442550,0.72,192.16,192.13,16.31296575]
[1761406443246,22.88,192.16,192.13,15.62296575]
[1761406443449,22.88,192.16,192.14,0.69]
[1761406443925,22.88,192.16,192.15,15.62133874]
[1761406444552,22.88,192.16,192.15,16.31133874]
[1761406444958,22.88,192.16,192.15,15.62133874]
[1761406446354,22.88,192.16,192.14,0.69]
[1761406453560,0.72,192.15,192.13,35.94]
[1761406454646,0.72,192.15,192.1,15.62296575]
[1761406454855,5.20453835,192.14,192.1,35.94]
[1761406455366,0.72,192.13,192.1,36.63]
[1761406456065,0.72,192.13,192.1,35.94]
[1761406462681,0.72,192.13,192.1,0.67]
[1761406462884,0.72,192.13,192.08,41.24610743]
[1761406463187,0.72,192.13,192.09,0.67]
[1761406466287,20.82913145,192.14,192.09,0.67]
[1761406466576,5.20429914,192.15,192.09,5.87588427]
[1761406466777,20.82889224,192.15,192.09,5.87588427]
[1761406466951,20.82889224,192.15,192.1,0.67]
[1761406467154,21.52889224,192.15,192.1,0.67]
[1761406467360,20.82889224,192.15,192.1,0.67]
[1761406467580,0.7,192.14,192.1,0.67]
[1761406468073,5.90463698,192.14,192.1,0.67]
[1761406468576,0.7,192.13,192.1,0.67]
[1761406470293,0.7,192.13,192.08,41.24612488]
[1761406470476,0.7,192.13,192.09,0.67]
[1761406473886,22.88,192.1,192.08,0.1]
[1761406474088,0.7,192.09,192.08,0.1]
[1761406474294,16.3245931,192.09,192.08,0.1]
[1761406474975,21.53048617,192.09,192.08,0.1]
[1761406479895,20.83048617,192.09,192.08,0.77]
[1761406480194,20.83048617,192.09,192.08,0.1]
[1761406480395,28.08562837,192.1,192.08,0.1]
[1761406480696,30.16934154,192.1,192.08,0.77]
[1761406481577,30.16934154,192.1,192.08,0.1]
[1761406482396,30.86934154,192.1,192.08,0.1]
[1761406483094,0.7,192.09,192.08,0.1]
[1761406484397,2.78382172,192.09,192.08,0.1]
[1761406485498,0.7,192.09,192.08,0.1]
[1761406486091,28.08562837,192.1,192.08,0.1]
[1761406486281,0.7,192.09,192.08,0.1]
[1761406489722,5.90589307,192.09,192.08,0.1]
[1761406492604,0.7,192.09,192.08,0.1]
[1761406494397,28.74563389,192.1,192.08,0.1]
[1761406495391,0.66,192.09,192.08,0.1]
[1761406495708,28.74563389,192.1,192.08,0.1]
[1761406497020,22.88,192.1,192.08,0.1]
[1761406497210,23.54,192.1,192.08,0.1]
[1761406499110,0.66,192.1,192.08,0.1]
[1761406501324,28.08542851,192.11,192.09,0.71]
[1761406501900,28.79542851,192.11,192.08,0.81]
[1761406502313,0.71,192.1,192.08,0.1]
[1761406504401,5.91574093,192.1,192.08,0.1]
[1761406504907,7.99967122,192.1,192.08,0.1]
[1761406506421,5.91574093,192.1,192.08,0.1]
[1761406506932,0.71,192.09,192.08,0.1]
[1761406507335,6.017201,192.09,192.08,0.1]
[1761406508034,11.22309407,192.09,192.08,0.1]
[1761406508334,5.91589307,192.09,192.08,0.1]
[1761406508532,7.99993193,192.09,192.08,0.1]
[1761406508734,5.91589307,192.09,192.08,0.1]
[1761406517625,16.79236828,192.09,192.08,0.1]
[1761406517828,16.79236828,192.09,192.06,0.1]
[1761406517829,22.88,192.07,192.06,0.1]
[1761406518016,26.37022598,192.07,192.06,0.1]
[1761406518323,27.08022598,192.07,192.06,0.1]
[1761406518652,29.16448203,192.07,192.06,0.1]
[1761406519142,34.37091718,192.07,192.06,0.1]
[1761406519344,136.57091718,192.07,192.06,0.1]
[1761406521145,172.53091718,192.07,192.06,0.1]
[1761406521356,81.20739239,192.07,192.06,0.1]
[1761406524636,81.22739239,192.07,192.06,0.1]
[1761406525653,81.72739239,192.07,192.06,0.1]
[1761406529239,78.23716641,192.07,192.06,0.1]
[1761406532537,42.25716641,192.07,192.06,0.1]
[1761406532742,78.23716641,192.07,192.06,0.1]
[1761406535263,42.25716641,192.07,192.06,0.1]
[1761406535455,78.23716641,192.07,192.06,0.1]
[1761406539169,81.68844452,192.07,192.06,0.1]
[1761406539669,78.23716641,192.07,192.06,0.1]
[1761406541269,81.68857845,192.07,192.06,0.1]
[1761406547366,44.99857845,192.07,192.06,0.76]
[1761406547579,80.97857845,192.07,192.06,0.76]
[1761406547948,80.97857845,192.07,192.06,0.1]
[1761406552959,81.69857845,192.07,192.06,0.1]
[1761406555682,81.19857845,192.07,192.06,0.1]
[1761406556580,80.47857845,192.07,192.06,0.1]
[1761406557082,81.19857845,192.07,192.06,0.1]
[1761406559970,69.60210324,192.07,192.06,0.77]
[1761406560381,69.60210324,192.07,192.06,0.1]
[1761406561264,73.95193423,192.07,192.06,0.1]